bitfinex/quotes_BTCUSD_20250831
["timestamp","ask_amount","ask_price","bid_price","bid_amount"]
[1756653634820,0.86124033,108690.0,108680.0,0.25637011]
[1756653635102,0.34110956,108690.0,108680.0,0.21468649]
[1756653635224,0.00198,108690.0,108680.0,0.21984649]
[1756653635434,0.15706,108690.0,108680.0,0.21984649]
[1756653636592,0.65313254,108700.0,108690.0,0.18400956]
[1756653636789,0.81019254,108700.0,108690.0,0.18400956]
[1756653636955,0.65511254,108700.0,108690.0,0.38400956]
[1756653637161,0.81019254,108700.0,108690.0,0.18400956]
[1756653637609,0.65511254,108700.0,108690.0,0.18400956]
[1756653637819,0.81019254,108700.0,108690.0,0.18916956]
[1756653638030,0.29190177,108700.0,108690.0,0.18709956]
[1756653638389,0.81019254,108700.0,108690.0,0.18400956]
[1756653638587,0.81019254,108700.0,108690.0,0.18500956]
[1756653641972,0.15706,108700.0,108690.0,0.19016956]
[1756653642175,0.15508,108700.0,108690.0,0.19016956]
[1756653643114,0.63159549,108710.0,108690.0,0.19016956]
[1756653643345,0.62122277,108710.0,108700.0,0.18399264]
[1756653643547,1.29657354,108710.0,108700.0,0.18399264]
[1756653643969,1.27933274,108710.0,108700.0,0.18399264]
[1756653645270,1.12425274,108710.0,108700.0,0.18399264]
[1756653645478,1.27013396,108710.0,108700.0,0.18915264]
[1756653645812,1.27113396,108710.0,108700.0,0.18915264]
[1756653646039,1.08615825,108710.0,108700.0,0.18915264]
[1756653646243,1.27113396,108710.0,108700.0,0.18915264]
[1756653646878,0.75284319,108710.0,108700.0,0.18915264]
[1756653647089,1.27113396,108710.0,108700.0,0.18915264]
[1756653648434,0.00104748,108710.0,108700.0,0.18915264]
[1756653648703,0.15838812,108710.0,108700.0,0.18915264]
[1756653649851,0.15608748,108710.0,108700.0,0.18915264]
[1756653650073,0.15608748,108710.0,108700.0,0.21680764]
[1756653650445,0.00104748,108710.0,108700.0,0.21680764]
[1756653652675,0.00104748,108710.0,108700.0,0.21880764]
[1756653652883,4.748e-05,108710.0,108700.0,0.21880764]
[1756653653205,4.748e-05,108710.0,108700.0,0.21780764]
[1756653653633,4.748e-05,108710.0,108700.0,0.21680764]
[1756653654052,4.748e-05,108710.0,108700.0,0.41680764]
[1756653654424,4.748e-05,108710.0,108700.0,0.21680764]
[1756653654656,4.748e-05,108710.0,108700.0,0.21980764]
[1756653655270,4.748e-05,108710.0,108700.0,0.22280764]
[1756653659247,4.748e-05,108710.0,108700.0,0.31578765]
[1756653660204,4.748e-05,108710.0,108700.0,0.83407842]
[1756653661109,4.748e-05,108710.0,108700.0,0.31578765]
[1756653661880,4.748e-05,108710.0,108700.0,0.33672647]
[1756653662860,4.748e-05,108710.0,108700.0,0.85501724]
[1756653666791,4.748e-05,108710.0,108700.0,1.08073724]
[1756653667210,4.748e-05,108710.0,108700.0,0.92573724]
[1756653667426,4.748e-05,108710.0,108700.0,0.40744647]
[1756653667628,4.748e-05,108710.0,108700.0,0.56244647]
[1756653667844,4.748e-05,108710.0,108700.0,0.40744647]
[1756653668056,4.748e-05,108710.0,108700.0,0.56244647]
[1756653668253,4.748e-05,108710.0,108700.0,0.95083712]
[1756653670451,4.748e-05,108710.0,108700.0,1.33922777]
[1756653670876,4.748e-05,108710.0,108700.0,1.38082084]
[1756653671904,4.748e-05,108710.0,108700.0,1.22582084]
[1756653672197,4.748e-05,108710.0,108700.0,0.60403954]
[1756653678643,4.748e-05,108710.0,108700.0,0.60399954]
[1756653679499,4.748e-05,108710.0,108700.0,0.44903954]
[1756653679723,4.748e-05,108710.0,108700.0,0.60399954]
[1756653687948,4.748e-05,108710.0,108700.0,0.56240647]
[1756653695521,0.38839651,108710.0,108700.0,0.56240647]
[1756653696087,4.748e-05,108710.0,108700.0,0.56240647]
[1756653696290,0.38839651,108710.0,108700.0,0.56240647]
[1756653698124,0.38839651,108710.0,108700.0,0.40744647]
[1756653698342,0.39037651,108710.0,108700.0,0.44328764]
[1756653698551,0.96454125,108710.0,108700.0,0.188575]
[1756653698758,0.96454125,108710.0,108700.0,0.16092]
[1756653699184,0.96454125,108710.0,108700.0,0.34491264]
[1756653699401,0.39221651,108710.0,108700.0,0.34491264]
[1756653699619,0.39037651,108710.0,108700.0,0.34491264]
[1756653700036,0.70397128,108710.0,108700.0,0.34491264]
[1756653700247,0.70397128,108710.0,108700.0,0.34191264]
[1756653700417,0.70397128,108710.0,108700.0,0.34391264]
[1756653701002,0.70581128,108710.0,108700.0,0.34391264]
[1756653701209,0.18784319,108710.0,108700.0,0.34391264]
[1756653701418,0.70581128,108710.0,108700.0,0.34391264]
[1756653701643,0.70397128,108710.0,108700.0,0.34091264]
[1756653702033,0.70397128,108710.0,108700.0,0.34291264]
[1756653705869,0.70581128,108710.0,108700.0,0.004]
[1756653706178,0.71470785,108710.0,108700.0,0.004]
[1756653706828,0.70581128,108710.0,108700.0,0.004]
[1756653707721,0.70581128,108710.0,108700.0,0.002]
[1756653707920,0.18399264,108700.0,108690.0,0.182575]
[1756653708130,0.70196073,108700.0,108690.0,0.36658456]
[1756653708253,0.70394073,108700.0,108690.0,0.36658456]
[1756653709071,0.70394073,108700.0,108690.0,0.36858456]
[1756653709458,0.70394073,108700.0,108690.0,0.21366456]
[1756653709658,0.70394073,108700.0,108690.0,0.36858456]
[1756653710386,0.70394073,108700.0,108690.0,0.37058456]
[1756653712298,0.18597264,108700.0,108690.0,0.37058456]
[1756653712547,0.51796809,108700.0,108690.0,0.37563456]
[1756653712756,0.33894319,108710.0,108700.0,0.18399264]
[1756653712976,0.70397128,108710.0,108700.0,0.18904264]
[1756653713192,0.70199128,108710.0,108700.0,0.18904264]
[1756653714048,0.70397128,108710.0,108700.0,0.19004264]
[1756653714425,0.70397128,108710.0,108700.0,0.19104264]
[1756653715377,0.70199128,108710.0,108700.0,0.19104264]
[1756653718871,0.70397128,108710.0,108700.0,0.19104264]
[1756653719551,0.70397128,108710.0,108700.0,0.16197]
[1756653720053,0.70397128,108710.0,108700.0,0.34596264]
[1756653720603,0.70397128,108710.0,108700.0,0.34391264]
[1756653720816,0.70397128,108710.0,108700.0,0.15688]
[1756653721526,0.70397128,108710.0,108700.0,0.002]
[1756653721784,0.70397128,108710.0,108700.0,0.15688]
[1756653722983,0.70397128,108710.0,108700.0,0.34087264]
[1756653723832,0.70397128,108710.0,108700.0,0.34391264]
[1756653724061,0.57448621,108710.0,108700.0,0.34391264]
[1756653724252,0.3885305,108710.0,108700.0,0.34592264]
[1756653726012,0.51795948,108710.0,108700.0,0.34592264]
[1756653728827,0.51795948,108710.0,108700.0,0.37357764]
[1756653729037,4.748e-05,108710.0,108700.0,0.37357764]
[1756653729245,0.51795948,108710.0,108700.0,0.37357764]
[1756653731065,0.51993948,108710.0,108700.0,0.37357764]
[1756653731677,0.51795948,108710.0,108700.0,0.37357764]
[1756653731927,4.748e-05,108710.0,108700.0,0.37357764]
[1756653732134,0.51795948,108710.0,108700.0,0.37357764]
[1756653733109,0.70391519,108710.0,108700.0,0.37357764]
[1756653733313,0.70391519,108710.0,108700.0,0.36852764]
[1756653733734,0.70391519,108710.0,108700.0,0.184535]
[1756653736166,0.70391519,108710.0,108700.0,0.37156764]
[1756653736795,0.70391519,108710.0,108700.0,0.187575]
[1756653737006,0.70391519,108710.0,108700.0,0.184535]
[1756653737214,0.70391519,108710.0,108700.0,0.187575]
[1756653738067,0.70391519,108710.0,108700.0,0.032695]
[1756653740292,0.70391519,108710.0,108700.0,0.029655]
[1756653740491,0.70575519,108710.0,108700.0,0.002]
[1756653740860,0.79405151,108710.0,108700.0,0.002]
[1756653741069,0.70575519,108710.0,108700.0,0.002]
[1756653744082,0.18784319,108710.0,108700.0,0.002]
[1756653744288,0.70575519,108710.0,108700.0,0.002]
[1756653744516,1.15599489,108710.0,108700.0,0.002]
[1756653744682,1.24429121,108710.0,108700.0,0.002]
[1756653745321,1.39913121,108710.0,108700.0,0.002]
[1756653747520,1.39903922,108710.0,108700.0,0.002]
[1756653747760,1.24419922,108710.0,108700.0,0.001]
[1756653747962,1.3107429,108710.0,108700.0,0.001]
[1756653748110,1.1559029,108710.0,108700.0,0.001]
[1756653748308,1.16167367,108710.0,108700.0,0.00215]
[1756653748516,1.31650341,108710.0,108700.0,0.00517]
[1756653748749,1.31650341,108710.0,108700.0,0.00302]
[1756653749392,1.29925398,108710.0,108700.0,0.00302]
[1756653755270,1.14441398,108710.0,108700.0,0.00302]
[1756653755477,0.7809945,108710.0,108700.0,0.00517]
[1756653756459,0.68801449,108710.0,108700.0,0.18916264]
[1756653757463,0.67881571,108710.0,108700.0,0.18916264]
[1756653758308,0.33881571,108710.0,108700.0,0.18916264]
[1756653758710,0.18397571,108710.0,108700.0,0.18916264]
[1756653758916,0.33881571,108710.0,108700.0,0.18916264]
[1756653762092,0.18397571,108710.0,108700.0,0.18916264]
[1756653762292,0.33881571,108710.0,108700.0,0.18916264]
[1756653763306,0.18397571,108710.0,108700.0,0.18916264]
[1756653763551,0.1548,108710.0,108700.0,0.18916264]
[1756653763726,0.15710064,108710.0,108700.0,0.18916264]
[1756653763957,0.15710064,108710.0,108700.0,0.21681864]
[1756653764167,0.1548,108710.0,108700.0,0.21681864]
[1756653765647,0.1548,108710.0,108700.0,0.25735904]
[1756653767055,0.7363512,108720.0,108700.0,0.25735904]
[1756653767394,0.7363512,108720.0,108710.0,0.00302]
[1756653767593,0.7366812,108720.0,108710.0,0.00302]
[1756653768214,0.7386812,108720.0,108710.0,0.00302]
[1756653768417,0.7366812,108720.0,108710.0,0.00302]
[1756653768775,0.7386812,108720.0,108710.0,0.00302]
[1756653769019,0.7396812,108720.0,108710.0,0.00302]
[1756653769264,0.7396812,108720.0,108710.0,0.00517]
[1756653769464,0.7396812,108720.0,108710.0,0.18914571]
[1756653770056,0.7386812,108720.0,108710.0,0.18914571]
[1756653770387,0.7396812,108720.0,108710.0,0.18914571]
[1756653771240,0.7396812,108720.0,108710.0,0.00517]
[1756653772032,0.7396812,108720.0,108710.0,0.18914571]
[1756653772844,0.7393512,108720.0,108710.0,0.18914571]
[1756653773654,0.5845512,108720.0,108710.0,0.18914571]
[1756653773912,0.7393112,108720.0,108710.0,0.18914571]
[1756653774299,0.7393112,108720.0,108710.0,0.18397571]
[1756653774300,0.7396412,108720.0,108710.0,0.18397571]
[1756653774521,0.7396412,108720.0,108710.0,0.18713571]
[1756653774694,0.7396412,108720.0,108710.0,0.18918571]
[1756653774905,0.7393112,108720.0,108710.0,0.18918571]
[1756653775097,0.7373112,108720.0,108710.0,0.18918571]
[1756653775282,0.7363112,108720.0,108710.0,0.19018571]
[1756653776518,0.5815512,108720.0,108710.0,0.19118571]
[1756653776801,0.7363112,108720.0,108710.0,0.19118571]
[1756653779331,0.26385994,108730.0,108720.0,0.18395879]
[1756653779516,0.9003239,108730.0,108720.0,0.18916879]
[1756653779731,0.80734389,108730.0,108720.0,0.18916879]
[1756653780455,0.41894994,108730.0,108720.0,0.18916879]
[1756653780679,0.80734389,108730.0,108720.0,0.18395879]
[1756653781091,0.80734389,108730.0,108720.0,0.18711879]
[1756653781514,0.45944395,108730.0,108720.0,0.18916879]
[1756653781856,0.79781582,108730.0,108720.0,0.18916879]
[1756653783630,0.57783413,108730.0,108720.0,0.18916879]
[1756653785111,0.57816413,108730.0,108720.0,0.00316]
[1756653785290,0.57816413,108730.0,108710.0,0.36634971]
[1756653785488,0.57816413,108730.0,108710.0,0.36950971]
[1756653785930,0.57816413,108730.0,108720.0,0.00316]
[1756653787322,0.57816413,108730.0,108720.0,0.18711879]
[1756653787631,0.57783413,108730.0,108720.0,0.18916879]
[1756653788242,0.18944018,108730.0,108720.0,0.18916879]
[1756653788442,0.57783413,108730.0,108720.0,0.18916879]
[1756653788646,0.94880566,108740.0,108720.0,0.18916879]
[1756653788868,0.00230064,108730.0,108720.0,0.18916879]
[1756653789050,0.15702064,108730.0,108720.0,0.18916879]
[1756653789617,0.00230064,108730.0,108720.0,0.21682179]
[1756653789820,0.18624251,108730.0,108720.0,0.21682179]
[1756653790024,0.18394187,108730.0,108720.0,0.21682179]
[1756653790205,0.57233582,108730.0,108720.0,0.21682179]
[1756653792561,1.10357326,108740.0,108730.0,0.18394187]
[1756653792727,1.10390326,108740.0,108730.0,0.18710187]
[1756653792923,1.09108913,108740.0,108730.0,0.18915187]
[1756653794070,1.10265065,108740.0,108730.0,0.18915187]
[1756653794313,1.10465065,108740.0,108730.0,0.18915187]
[1756653794916,1.10465065,108740.0,108730.0,0.00316]
[1756653795110,1.10465065,108740.0,108730.0,0.18710187]
[1756653795349,0.74389289,108740.0,108730.0,0.18915187]
[1756653795487,0.74489289,108740.0,108730.0,0.18915187]
[1756653795800,0.75662314,108740.0,108730.0,0.21680187]
[1756653796779,0.74489289,108740.0,108730.0,0.21680187]
[1756653799790,0.74489289,108740.0,108730.0,0.21475187]
[1756653800000,0.35649894,108740.0,108730.0,0.21475187]
[1756653800226,0.35649894,108740.0,108730.0,0.21674187]
[1756653800429,0.74489289,108740.0,108730.0,0.21674187]
[1756653800606,0.75672632,108740.0,108730.0,0.21674187]
[1756653801015,0.75472632,108740.0,108730.0,0.21674187]
[1756653801402,0.75372632,108740.0,108730.0,0.21674187]
[1756653801605,0.56935136,108740.0,108730.0,0.21674187]
[1756653803031,0.55495498,108740.0,108730.0,0.21674187]
[1756653803799,0.73887993,108740.0,108730.0,0.21674187]
[1756653804026,0.73920993,108740.0,108730.0,0.21674187]
[1756653806230,0.75360457,108740.0,108730.0,0.21674187]
[1756653811316,0.75360457,108740.0,108730.0,0.21536221]
[1756653811674,0.02631567,108740.0,108730.0,0.21536221]
[1756653811875,0.57334026,108740.0,108730.0,0.21536221]
[1756653812136,0.57103962,108740.0,108730.0,0.21536221]
[1756653812338,0.41643962,108740.0,108730.0,0.21536221]
[1756653812539,0.57103962,108740.0,108730.0,0.21536221]
[1756653812955,0.41470962,108740.0,108730.0,0.21536221]
[1756653813182,0.56930962,108740.0,108730.0,0.21536221]
[1756653814025,0.16908224,108740.0,108730.0,0.21536221]
[1756653814290,0.55977683,108740.0,108730.0,0.21536221]
[1756653814512,0.55747619,108740.0,108730.0,0.21536221]
[1756653816084,0.55920619,108740.0,108730.0,0.21536221]
[1756653827614,0.01448224,108740.0,108730.0,0.21536221]
[1756653827823,0.55743619,108740.0,108730.0,0.36992221]
[1756653828032,0.01448224,108740.0,108730.0,0.36992221]
[1756653828232,0.01448224,108740.0,108730.0,0.75831616]
[1756653830475,0.01172337,108740.0,108730.0,0.75831616]
[1756653830680,0.58359421,108750.0,108740.0,0.18392495]
[1756653830878,0.73815421,108750.0,108740.0,0.18919495]
[1756653832066,0.01229202,108750.0,108740.0,0.18919495]
[1756653832278,0.001,108750.0,108740.0,0.18919495]
[1756653832725,0.001,108750.0,108740.0,0.21684095]
[1756653833141,0.003,108750.0,108740.0,0.21684095]
[1756653834225,0.003,108750.0,108740.0,0.37136095]
[1756653834424,0.18920868,108750.0,108740.0,0.21684095]
[1756653834632,0.57530199,108750.0,108740.0,0.37136095]
[1756653835625,0.18690804,108750.0,108740.0,0.37136095]
[1756653835784,0.57530199,108750.0,108740.0,0.37136095]
[1756653835966,0.18690804,108750.0,108740.0,0.37136095]
[1756653836207,0.57530199,108750.0,108740.0,0.37136095]
[1756653836610,0.58651214,108750.0,108740.0,0.37136095]
[1756653839189,0.4026041,108750.0,108740.0,0.37136095]
[1756653839387,0.39139395,108750.0,108740.0,0.37136095]
[1756653840215,0.003,108750.0,108740.0,0.37136095]
[1756653840624,0.01395715,108750.0,108740.0,0.37136095]
[1756653840759,0.003,108750.0,108740.0,0.37136095]
[1756653842030,0.18690804,108750.0,108740.0,0.37136095]
[1756653842377,0.18690804,108750.0,108740.0,0.21684095]
[1756653842588,0.18690804,108750.0,108740.0,0.027646]
[1756653842589,0.66395831,108750.0,108740.0,0.027646]
[1756653842791,0.57723199,108750.0,108740.0,0.027646]
[1756653843608,0.58653554,108750.0,108730.0,0.18705113]
[1756653843820,0.54517459,108740.0,108730.0,0.18705113]
[1756653844025,0.54287395,108740.0,108730.0,0.18921113]
[1756653844230,0.54287395,108740.0,108730.0,0.21686013]
[1756653844438,0.15448,108740.0,108730.0,0.21686013]
[1756653844735,0.34070559,108740.0,108730.0,0.21686013]
[1756653844890,0.33840495,108740.0,108730.0,0.21686013]
[1756653845089,0.33840495,108740.0,108730.0,0.60525408]
[1756653845787,0.18392495,108740.0,108730.0,0.60525408]
[1756653846004,0.35279896,108740.0,108730.0,0.60525408]
[1756653846839,0.74157291,108740.0,108730.0,0.187399]
[1756653847052,0.82986923,108740.0,108730.0,0.182129]
[1756653847269,0.74157291,108740.0,108730.0,0.182129]
[1756653847483,0.74157291,108740.0,108730.0,0.185239]
[1756653848822,0.74157291,108740.0,108730.0,0.182129]
[1756653851343,0.74157291,108740.0,108730.0,0.185239]
[1756653851700,0.74157291,108740.0,108730.0,0.030759]
[1756653851898,0.74157291,108740.0,108730.0,0.182129]
[1756653852578,0.35317896,108740.0,108730.0,0.36918087]
[1756653852765,0.01439401,108740.0,108730.0,0.37134087]
[1756653853185,0.01669465,108740.0,108730.0,0.37134087]
[1756653853385,0.01669465,108740.0,108730.0,0.75973482]
[1756653853737,0.2006196,108740.0,108730.0,0.75973482]
[1756653853939,0.19831896,108740.0,108730.0,0.75973482]
[1756653854140,0.19831896,108740.0,108730.0,0.37134087]
[1756653855876,0.01439401,108740.0,108730.0,0.37134087]
[1756653856719,0.2006196,108740.0,108730.0,0.37134087]
[1756653856942,0.19831896,108740.0,108730.0,0.37134087]
[1756653858377,0.19867896,108740.0,108730.0,0.187399]
[1756653858580,0.58707291,108740.0,108730.0,0.187399]
[1756653858950,0.58707291,108740.0,108730.0,0.030759]
[1756653859144,0.58707291,108740.0,108730.0,0.182089]
[1756653859780,0.16883401,108740.0,108730.0,0.37130087]
[1756653859986,0.01439401,108740.0,108730.0,0.37130087]
[1756653860398,0.01439401,108740.0,108730.0,0.75969482]
[1756653860798,0.52650718,108750.0,108730.0,0.75969482]
[1756653860996,0.71041522,108750.0,108740.0,0.00307]
[1756653861202,0.71077522,108750.0,108740.0,0.00507]
[1756653861936,0.71177522,108750.0,108740.0,0.00507]
[1756653862311,0.71377522,108750.0,108740.0,0.00507]
[1756653863338,0.71277522,108750.0,108740.0,0.00507]
[1756653863538,0.71377522,108750.0,108740.0,0.00507]
[1756653864270,0.72509543,108750.0,108740.0,0.00507]
[1756653865513,0.19822825,108750.0,108740.0,0.18899495]
[1756653865691,0.16872021,108750.0,108740.0,0.18899495]
[1756653865904,0.003,108750.0,108740.0,0.21664195]
[1756653866043,0.0173935,108750.0,108740.0,0.21664195]
[1756653866236,0.0173935,108750.0,108740.0,0.41664195]
[1756653866439,0.0173935,108750.0,108740.0,0.21664195]
[1756653866630,0.0173935,108750.0,108740.0,0.41664195]
[1756653867000,0.0173935,108750.0,108740.0,0.21664195]
[1756653867153,0.0173935,108750.0,108740.0,0.41664195]
[1756653867784,0.0173935,108750.0,108740.0,0.21664195]
[1756653871854,0.20130154,108750.0,108740.0,0.21664195]
[1756653872099,0.20130154,108750.0,108740.0,0.37104195]
[1756653875137,0.20130154,108750.0,108740.0,0.7594359]
[1756653875138,0.0173935,108750.0,108740.0,0.7594359]
[1756653875341,0.003,108750.0,108740.0,0.7594359]
[1756653876170,0.002,108750.0,108740.0,0.7594359]
[1756653876453,0.002,108750.0,108740.0,0.7604359]
[1756653877153,0.16723393,108760.0,108750.0,0.18390804]
[1756653877353,0.65227784,108770.0,108750.0,0.18897804]
[1756653877354,0.80663784,108770.0,108750.0,0.18897804]
[1756653877591,0.89970543,108770.0,108750.0,0.18590804]
[1756653877800,1.23970543,108770.0,108760.0,0.00307]
[1756653877955,1.14708542,108770.0,108760.0,0.18896113]
[1756653878156,0.19325147,108770.0,108760.0,0.18896113]
[1756653878375,0.73600542,108770.0,108760.0,0.18896113]
[1756653878574,0.73600542,108770.0,108760.0,0.21660313]
[1756653879010,0.75077659,108770.0,108760.0,0.21660313]
[1756653879216,0.75277659,108770.0,108760.0,0.21660313]
[1756653879823,0.21002264,108770.0,108760.0,0.032712]
[1756653880004,0.36438264,108770.0,108760.0,0.032712]
[1756653880232,0.75277659,108770.0,108760.0,0.032712]
[1756653880411,0.76128116,108770.0,108760.0,0.032712]
[1756653880750,0.76428116,108770.0,108760.0,0.032712]
[1756653880951,0.76228116,108770.0,108760.0,0.030712]
[1756653881101,0.76128116,108770.0,108760.0,0.030712]
[1756653884579,0.60692116,108770.0,108760.0,0.030712]
[1756653884760,0.76124116,108770.0,108760.0,0.030712]
[1756653885214,0.76124116,108770.0,108760.0,0.21460313]
[1756653885423,0.76124116,108770.0,108760.0,0.21660313]
[1756653885787,0.60692116,108770.0,108760.0,0.21660313]
[1756653886013,0.76124116,108770.0,108760.0,0.21660313]
[1756653886435,0.37284721,108770.0,108760.0,0.21660313]
[1756653886711,0.76124116,108770.0,108760.0,0.21660313]
[1756653887207,0.37284721,108770.0,108760.0,0.21660313]
[1756653887343,0.76124116,108770.0,108760.0,0.21660313]
[1756653887543,0.76124116,108770.0,108760.0,0.032712]
[1756653888208,0.76124116,108770.0,108760.0,0.027642]
[1756653891354,0.76124116,108770.0,108760.0,0.030722]
[1756653892568,0.76124116,108770.0,108760.0,0.21658313]
[1756653893633,0.76124116,108770.0,108760.0,0.032692]
[1756653894022,0.76124116,108770.0,108760.0,0.21658313]
[1756653894630,0.36313755,108770.0,108760.0,0.21658313]
[1756653894798,0.17926332,108770.0,108760.0,0.21658313]
[1756653894989,0.7515315,108770.0,108760.0,0.18894113]
[1756653895843,0.73714033,108770.0,108760.0,0.18894113]
[1756653896049,0.34874638,108770.0,108760.0,0.18894113]
[1756653896249,0.73714033,108770.0,108760.0,0.18894113]
[1756653896458,0.18389113,108760.0,108750.0,0.79931189]
[1756653896656,0.57268508,108760.0,108750.0,0.41091794]
[1756653896889,0.57268508,108760.0,108750.0,0.41288794]
[1756653897141,0.57228508,108760.0,108750.0,0.41288794]
[1756653897696,0.57228508,108760.0,108750.0,0.41388794]
[1756653897904,0.57228508,108760.0,108750.0,0.37287904]
[1756653898737,0.18389113,108760.0,108750.0,0.37287904]
[1756653902878,0.73714033,108770.0,108750.0,0.37287904]
[1756653903301,0.18389113,108760.0,108750.0,0.37287904]
[1756653903707,0.18389113,108760.0,108750.0,0.21859904]
[1756653903906,1.05091535,108760.0,108750.0,0.001]
[1756653904517,0.6625214,108760.0,108750.0,0.001]
[1756653904699,0.6609914,108760.0,108750.0,0.001]
[1756653904898,0.6625214,108760.0,108750.0,0.001]
[1756653905364,0.57269508,108760.0,108750.0,0.001]
[1756653905535,0.96108903,108760.0,108750.0,0.001]
[1756653906304,0.96108903,108760.0,108750.0,0.002]
[1756653907727,0.57269508,108760.0,108750.0,0.002]
[1756653907993,0.18430113,108760.0,108750.0,0.19095804]
[1756653908205,0.72652508,108760.0,108750.0,0.19095804]
[1756653909351,0.72652508,108760.0,108750.0,0.00705]
[1756653909802,0.72694508,108760.0,108750.0,0.00705]
[1756653910016,0.72694508,108760.0,108750.0,0.002]
[1756653915351,0.33855113,108760.0,108750.0,0.002]
[1756653915554,1.11533903,108760.0,108750.0,0.002]
[1756653916370,0.72694508,108760.0,108750.0,0.002]
[1756653917049,1.22027183,108760.0,108750.0,0.002]
[1756653917252,1.57751828,108760.0,108750.0,0.002]
[1756653917455,1.60516528,108760.0,108750.0,0.002]
[1756653918013,1.60516528,108760.0,108750.0,0.001]
[1756653918435,0.18392495,108740.0,108730.0,0.2294343]
[1756653918613,0.18392495,108740.0,108730.0,0.45780199]
[1756653919571,0.18392495,108740.0,108730.0,0.45980199]
[1756653920007,0.18392495,108740.0,108730.0,0.27586012]
[1756653920210,0.18392495,108740.0,108730.0,0.20374582]
[1756653921163,0.5723189,108740.0,108730.0,0.05150582]
[1756653921363,0.5723189,108740.0,108730.0,0.20574582]
[1756653922993,0.5723189,108740.0,108730.0,0.16329]
[1756653923190,0.18392495,108740.0,108730.0,0.19299187]
[1756653923393,0.5723189,108740.0,108730.0,0.34723187]
[1756653924215,0.18392495,108740.0,108730.0,0.34723187]
[1756653925806,0.72655666,108750.0,108730.0,0.34723187]
[1756653926029,0.72655666,108750.0,108740.0,0.18392495]
[1756653926238,0.57231666,108750.0,108740.0,0.18593495]
[1756653926443,0.57231666,108750.0,108730.0,0.73057582]
[1756653926444,0.18392495,108740.0,108730.0,0.004]
[1756653926659,0.96071285,108740.0,108730.0,0.004]
[1756653926872,0.96109285,108740.0,108730.0,0.002]
[1756653927075,0.5726989,108740.0,108730.0,0.002]
[1756653927714,0.5726989,108740.0,108730.0,0.004]
[1756653927957,0.66058096,108740.0,108730.0,0.004]
[1756653928249,0.66058096,108740.0,108720.0,0.26925807]
[1756653928250,0.18394187,108730.0,108720.0,0.26925807]
[1756653928694,0.18394187,108730.0,108720.0,0.11702807]
[1756653929059,0.18394187,108730.0,108720.0,0.27122807]
[1756653929266,0.33812495,108740.0,108720.0,0.30098686]
[1756653929462,0.33812495,108740.0,108730.0,0.00304]
[1756653929669,0.18392495,108740.0,108730.0,0.00304]
[1756653929868,0.18392495,108740.0,108730.0,0.00505]
[1756653930847,0.18428495,108740.0,108730.0,0.00505]
[1756653931095,0.18428495,108740.0,108730.0,0.00605]
[1756653932864,0.18428495,108740.0,108730.0,0.00705]
[1756653933601,0.18428495,108740.0,108730.0,0.002]
[1756653933602,0.79026606,108740.0,108730.0,0.002]
[1756653934060,0.70196974,108740.0,108730.0,0.002]
[1756653934480,1.13494975,108740.0,108730.0,0.002]
[1756653934737,1.15338259,108740.0,108730.0,0.002]
[1756653934912,1.18103459,108740.0,108730.0,0.002]
[1756653935541,1.18103459,108740.0,108730.0,0.001]
[1756653936040,1.16380175,108740.0,108730.0,0.001]
[1756653936389,0.18394187,108730.0,108720.0,8.76e-05]
[1756653936615,0.85582666,108730.0,108720.0,0.0031276]
[1756653936946,0.85619666,108730.0,108720.0,0.0031276]
[1756653937758,0.85619666,108730.0,108720.0,0.0041276]
[1756653938114,0.85619666,108730.0,108720.0,0.0061376]
[1756653938546,0.85619666,108730.0,108720.0,0.0071376]
[1756653938865,0.70199666,108730.0,108720.0,0.0071376]
[1756653939060,0.85619666,108730.0,108720.0,0.0071376]
[1756653939283,0.70162666,108730.0,108720.0,0.0071376]
[1756653939434,0.33814187,108730.0,108720.0,0.0071376]
[1756653940068,0.18394187,108730.0,108720.0,0.0071376]
[1756653943128,0.79028298,108730.0,108720.0,0.0020876]
[1756653943331,0.70198666,108730.0,108720.0,0.0020876]
[1756653943815,1.13616667,108730.0,108720.0,0.0020876]
[1756653943996,1.15339501,108730.0,108720.0,0.0020876]
[1756653944181,1.18104901,108730.0,108720.0,0.0020876]
[1756653944550,1.18104901,108730.0,108720.0,0.0010876]
[1756653944752,1.18104901,108730.0,108720.0,8.76e-05]
[1756653947537,1.22561749,108730.0,108720.0,8.76e-05]
[1756653948394,1.22561772,108730.0,108720.0,8.76e-05]
[1756653948979,1.22561661,108730.0,108720.0,8.76e-05]
[1756653951495,0.70793182,108730.0,108720.0,8.76e-05]
[1756653951698,1.22561661,108730.0,108720.0,8.76e-05]
[1756653953303,1.37981661,108730.0,108720.0,8.76e-05]
[1756653954498,1.25056813,108730.0,108720.0,8.76e-05]
[1756653954939,1.40476813,108730.0,108720.0,0.0031876]
[1756653955119,1.40476813,108730.0,108720.0,8.76e-05]
[1756653956321,0.88708334,108730.0,108720.0,8.76e-05]
[1756653956526,1.40476813,108730.0,108720.0,8.76e-05]
[1756653957914,1.40476813,108730.0,108720.0,0.0031876]
[1756653959094,1.40477374,108730.0,108720.0,0.0031876]
[1756653959316,1.40477374,108730.0,108720.0,8.76e-05]
[1756653961179,1.49307006,108730.0,108720.0,8.76e-05]
[1756653963472,1.50169214,108730.0,108720.0,8.76e-05]
[1756653963666,1.50170324,108730.0,108720.0,8.76e-05]
[1756653964788,1.50166324,108730.0,108720.0,8.76e-05]
[1756653964957,1.50166453,108730.0,108720.0,0.0031876]
[1756653965319,1.41336821,108730.0,108720.0,0.0031876]
[1756653965872,1.41336821,108730.0,108720.0,8.76e-05]
[1756653966027,1.41336821,108730.0,108720.0,0.0053176]
[1756653968020,1.67247338,108730.0,108720.0,0.0053176]
[1756653968236,0.81598005,108730.0,108720.0,0.0053176]
[1756653968449,1.18713086,108730.0,108720.0,0.0053176]
[1756653968682,1.20438102,108730.0,108720.0,0.0053176]
[1756653969914,1.18713086,108730.0,108720.0,0.0053176]
[1756653970114,1.24080657,108730.0,108720.0,0.0053176]
[1756653970699,0.74664657,108730.0,108720.0,0.0053176]
[1756653970889,0.3553541,108730.0,108720.0,0.0053176]
[1756653971267,0.33810187,108730.0,108720.0,0.0053176]
[1756653972695,0.85590034,108730.0,108720.0,0.0053176]
[1756653981554,0.85590034,108730.0,108720.0,0.18927639]
[1756653984867,0.85590034,108730.0,108720.0,0.0053176]
[1756653985071,0.33810187,108730.0,108720.0,0.0053176]
[1756653985329,0.85590034,108730.0,108720.0,0.0053176]
[1756653987056,0.85582034,108730.0,108720.0,0.18927639]
[1756653987285,0.33802187,108730.0,108720.0,0.18927639]
[1756653987492,0.85582034,108730.0,108720.0,0.18927639]
[1756653988777,0.33802187,108730.0,108720.0,0.18927639]
[1756653989168,0.85582034,108730.0,108720.0,0.18927639]
[1756653991971,0.72632304,108730.0,108720.0,0.18927639]
[1756653994494,0.33802187,108730.0,108720.0,0.18927639]
[1756653994706,0.72632304,108730.0,108720.0,0.18927639]